bitfinex/quotes_ETHUSD_20241105
["timestamp","ask_amount","ask_price","bid_price","bid_amount"]
[1730764802052,2.13453735,2399.8,2399.4,0.2574386]
[1730764802249,2.13453735,2399.8,2399.5,0.2574386]
[1730764802456,2.13453735,2399.8,2399.2,0.8044]
[1730764802676,2.13453735,2399.8,2399.3,0.66936367]
[1730764802878,2.13453735,2399.8,2399.4,0.25744144]
[1730764803149,2.13453735,2399.8,2399.5,0.25744144]
[1730764803345,2.13453735,2399.8,2399.4,0.41201108]
[1730764803581,2.13453735,2399.8,2399.5,0.25749971]
[1730764803827,2.13453735,2399.8,2399.4,0.41200127]
[1730764803984,0.8027,2399.7,2399.5,0.25748866]
[1730764804181,0.8027,2399.7,2399.3,0.41192362]
[1730764804182,0.8027,2399.6,2399.3,0.41192362]
[1730764804429,1.30903324,2399.5,2399.3,0.41192362]
[1730764804779,2.10043324,2399.4,2399.3,0.41192362]
[1730764805288,0.7914,2399.4,2399.3,0.41192362]
[1730764805685,1.30903324,2399.6,2399.3,0.41192362]
[1730764806036,3.0,2399.9,2399.3,0.41192362]
[1730764806037,1.30903324,2399.9,2399.3,0.41192362]
[1730764806245,0.757,2399.7,2399.3,0.41192362]
[1730764806731,0.7539,2399.6,2399.3,0.41192362]
[1730764807028,3.04938935,2399.4,2399.3,0.41192362]
[1730764807265,6.04938935,2399.4,2399.3,0.41192362]
[1730764807538,6.04625917,2399.4,2399.3,0.41192362]
[1730764807827,6.04633654,2399.4,2399.3,0.41192362]
[1730764808324,2.06080327,2399.4,2399.3,0.41192362]
[1730764808551,5.06080327,2399.4,2399.3,0.41192362]
[1730764809542,2.06080327,2399.4,2399.3,0.41192362]
[1730764810314,6.50894446,2399.4,2399.3,0.41192362]
[1730764810935,5.20204119,2399.4,2399.3,0.41192362]
[1730764811139,5.61080327,2399.4,2399.3,0.41192362]
[1730764812205,5.61080327,2399.4,2399.1,0.21537958]
[1730764812401,4.3039,2399.4,2399.1,0.21537958]
[1730764812901,5.61080327,2399.4,2399.1,0.21537958]
[1730764813539,0.7539,2399.4,2399.1,0.21537958]
[1730764813919,4.30690327,2399.7,2399.1,0.21537958]
[1730764813920,2.06020327,2399.7,2399.1,0.21537958]
[1730764814237,1.30690327,2399.8,2399.3,0.8005]
[1730764814398,0.7533,2399.9,2399.4,0.08334708]
[1730764814604,0.7533,2399.9,2399.3,0.8005]
[1730764814865,2.06020327,2399.9,2399.3,0.8005]
[1730764815066,0.7533,2399.9,2399.3,0.8005]
[1730764815230,2.06020327,2399.9,2399.3,0.8005]
[1730764815423,2.06020327,2399.9,2399.1,0.21537958]
[1730764815424,5.44046725,2399.9,2399.1,0.21537958]
[1730764815626,1.30690327,2399.6,2399.1,0.21537958]
[1730764815874,0.7569,2399.5,2399.1,0.21537958]
[1730764817428,5.06380327,2399.5,2399.1,0.21537958]
[1730764817631,2.06380327,2399.5,2399.1,0.21537958]
[1730764817866,0.19725059,2399.4,2399.1,0.21537958]
[1730764818564,0.55,2399.2,2399.1,0.21537958]
[1730764818775,5.64270327,2399.2,2399.1,0.21537958]
[1730764819061,5.84008933,2399.2,2399.1,0.21537958]
[1730764819267,4.53318606,2399.2,2399.1,0.21537958]
[1730764819571,0.19738606,2399.2,2399.1,0.21537958]
[1730764819751,1.01798606,2399.2,2399.1,0.21537958]
[1730764819958,1.35308893,2399.2,2399.1,0.21537958]
[1730764820156,1.55033199,2399.2,2399.1,0.21537958]
[1730764820362,1.01784306,2399.2,2399.1,0.21537958]
[1730764821342,5.87474633,2399.2,2399.1,0.21537958]
[1730764821827,6.3102796,2399.2,2399.1,0.21537958]
[1730764822029,4.56784306,2399.2,2399.1,0.21537958]
[1730764822231,6.3066316,2399.2,2399.1,0.21537958]
[1730764822431,7.56146471,2399.2,2399.1,0.21537958]
[1730764823548,7.12597507,2399.2,2399.1,0.21537958]
[1730764823749,7.12597138,2399.2,2399.1,0.21537958]
[1730764823927,5.87113827,2399.2,2399.1,0.21537958]
[1730764824124,4.56784306,2399.2,2399.1,0.21537958]
[1730764825070,5.87113827,2399.2,2399.1,0.21537958]
[1730764825602,4.56784306,2399.2,2399.1,0.21537958]
[1730764826707,1.56784306,2399.2,2399.1,0.21537958]
[1730764826865,0.19724306,2399.2,2399.1,0.21537958]
[1730764827059,0.8067,2399.4,2399.1,0.21537958]
[1730764827412,0.19688923,2399.3,2399.1,0.21537958]
[1730764828064,2.10999521,2399.6,2399.1,0.21537958]
[1730764828308,0.19688923,2399.5,2399.1,0.21537958]
[1730764830112,1.50018444,2399.5,2399.1,0.21537958]
[1730764830262,5.66779444,2399.5,2399.1,0.21537958]
[1730764830467,9.68353342,2399.4,2399.1,0.21537958]
[1730764830706,0.7626,2399.2,2399.1,0.21537958]
[1730764831076,0.95979788,2399.2,2399.1,0.21537958]
[1730764831725,5.12784788,2399.2,2399.1,0.21537958]
[1730764832010,0.95979788,2399.2,2399.1,0.21537958]
[1730764833108,0.19719788,2399.2,2399.1,0.21537958]
[1730764833324,5.06809521,2399.4,2399.1,5.31545054]
[1730764833612,0.1970398,2399.3,2399.1,4.38359958]
[1730764834256,3.0,2399.5,2399.1,4.38359958]
[1730764834547,5.47084521,2399.5,2399.1,4.38359958]
[1730764834711,0.1970398,2399.4,2399.1,4.38350958]
[1730764836247,4.3648298,2399.4,2399.1,0.21537958]
[1730764836410,4.97395,2399.3,2399.1,0.21537958]
[1730764836611,4.16805,2399.2,2399.1,0.21537958]
[1730764836811,4.36521777,2399.2,2399.1,0.21537958]
[1730764837151,4.36521777,2399.2,2398.7,0.8057]
[1730764837152,5.66851298,2399.2,2398.7,0.8057]
[1730764837465,5.66851298,2399.2,2398.7,4.97461]
[1730764837466,4.16829,2399.1,2398.7,4.97461]
[1730764837657,4.16829,2399.1,2398.7,5.888983]
[1730764837952,5.66851298,2399.2,2398.7,5.888893]
[1730764837953,0.19708497,2399.0,2398.7,5.888893]
[1730764838314,5.47134521,2399.2,2398.7,5.888893]
[1730764838657,4.36539497,2399.1,2398.7,4.97452]
[1730764839215,4.36539497,2399.1,2398.5,4.91941]
[1730764839216,0.7684,2398.9,2398.5,4.91941]
[1730764839559,0.7684,2398.9,2398.1,4.82247375]
[1730764839560,4.16905,2398.7,2398.3,0.8028]
[1730764839759,4.16905,2398.7,2398.3,4.97241]
[1730764840049,8.47205521,2398.8,2398.3,4.97241]
[1730764840211,0.19692688,2398.6,2398.3,4.97241]
[1730764840416,8.47205521,2398.8,2398.3,4.97241]
[1730764840649,0.19692688,2398.5,2398.3,4.97241]
[1730764840846,8.47205521,2398.8,2398.3,9.14194]
[1730764841400,0.19692688,2398.7,2398.3,9.14194]
[1730764841712,1.30329521,2398.9,2398.6,4.16909]
[1730764841849,1.30329521,2399.0,2398.8,4.16874]
[1730764842047,1.30329521,2399.0,2398.7,0.7831]
[1730764842048,9.27993521,2399.1,2398.7,4.95196]
[1730764842351,9.27993521,2399.1,2398.7,0.7262752]
[1730764842893,1.30329521,2399.0,2398.7,0.7262752]
[1730764843188,5.47181521,2399.0,2398.5,4.16917]
[1730764843345,5.47204521,2398.9,2398.4,4.16934]
[1730764843681,5.47204521,2398.9,2398.2,8.33933]
[1730764843900,4.95293,2398.7,2398.2,8.33933]
[1730764844050,6.25622521,2398.7,2398.3,0.25741032]
[1730764844248,6.82653589,2398.7,2398.2,4.16965]
[1730764844449,10.99559589,2398.7,2398.2,4.16965]
[1730764844769,5.47240521,2398.6,2398.2,4.16965]
[1730764844945,1.30329521,2398.6,2398.2,4.16965]
[1730764846599,1.30329521,2398.6,2398.3,4.16961]
[1730764847605,1.30329521,2398.6,2398.2,4.16965]
[1730764848410,0.19663327,2398.5,2398.2,4.16965]
[1730764848703,1.49992848,2398.5,2398.2,4.16965]
[1730764849066,0.19663327,2398.5,2398.2,4.16965]
[1730764849471,1.49992848,2398.5,2398.2,4.16965]
[1730764850126,0.19663327,2398.5,2398.3,4.16962]
[1730764850471,0.18418675,2398.5,2398.3,4.16962]
[1730764850719,0.18418675,2398.5,2398.4,4.99534]
[1730764851110,1.30329521,2398.7,2398.5,4.16925]
[1730764851416,0.19621838,2398.6,2398.5,4.16925]
[1730764851785,0.19621838,2398.6,2398.5,4.25263115]
[1730764851980,0.19621838,2398.6,2398.5,4.16925]
[1730764852186,1.30329521,2398.9,2398.7,8.3377]
[1730764852386,1.30329521,2399.0,2398.7,8.3377]
[1730764852705,1.30329521,2399.0,2398.8,4.1687]
[1730764853275,1.30329521,2399.0,2398.8,4.16863]
[1730764853474,1.30329521,2399.0,2398.9,4.93587]
[1730764853670,1.30329521,2399.0,2398.9,6.10365026]
[1730764854699,1.30329521,2399.0,2398.9,5.84632]
[1730764854896,1.30329521,2399.0,2398.9,6.10361279]
[1730764855488,1.30329521,2399.0,2398.9,6.51517836]
[1730764856984,1.30329521,2399.0,2398.9,9.51517836]
[1730764857387,1.73878854,2399.5,2399.3,4.16788]
[1730764857388,1.30329521,2399.4,2399.3,4.16788]
[1730764857714,1.49940047,2399.4,2399.3,5.76717]
[1730764858082,0.19610526,2399.4,2399.3,5.76717]
[1730764858421,0.19610526,2399.4,2399.3,6.0241334]
[1730764858719,1.73878854,2399.5,2399.3,6.0241334]
[1730764859025,1.73878854,2399.5,2399.4,4.1677]
[1730764859206,1.73878854,2399.5,2399.4,5.577989]
[1730764860718,1.73878854,2399.5,2399.3,0.83359]
[1730764860903,1.73878854,2399.5,2399.1,4.95003]
[1730764860904,0.8112,2399.4,2399.1,4.16813]
[1730764861106,0.8112,2399.4,2398.9,4.16846]
[1730764861313,4.97896,2399.4,2398.9,4.16846]
[1730764862023,0.8112,2399.4,2399.0,4.16839]
[1730764862407,0.8112,2399.4,2399.0,0.833685]
[1730764862609,4.73878854,2399.5,2399.2,4.16795]
[1730764862920,1.73878854,2399.5,2399.2,4.16795]
[1730764863224,0.19610526,2399.4,2399.1,4.16807]
[1730764863399,0.19610526,2399.4,2399.2,4.16794]
[1730764864017,0.19610526,2399.4,2399.2,5.001562]
[1730764864214,0.19610526,2399.4,2399.3,4.16788]
[1730764867606,0.19610526,2399.4,2399.2,4.16794]
[1730764868118,4.36389526,2399.4,2398.9,4.97398]
[1730764868409,0.751,2399.3,2398.9,4.16848]
[1730764868826,0.19712907,2399.2,2398.9,4.16848]
[1730764869201,0.751,2399.3,2398.9,4.16848]
[1730764869393,0.19712907,2399.1,2398.9,4.16848]
[1730764869598,0.751,2399.3,2398.9,4.16848]
[1730764869794,0.19712907,2399.0,2398.9,4.16848]
[1730764870048,0.751,2399.3,2398.9,4.16848]
[1730764870202,0.19712907,2399.0,2398.9,4.16848]
[1730764870736,0.751,2399.3,2398.9,4.16848]
[1730764870937,0.19712907,2399.2,2398.9,4.16848]
[1730764871101,0.751,2399.3,2398.8,4.16861]
[1730764871350,0.19712907,2399.2,2398.9,4.16857]
[1730764871526,4.91892,2399.3,2398.9,4.16857]
[1730764871701,0.68902107,2399.2,2398.8,4.16861]
[1730764871898,4.16824,2399.1,2398.6,8.33798]
[1730764872136,0.7814,2399.0,2398.6,4.16908]
[1730764872339,0.19712907,2398.9,2398.6,4.16908]
[1730764873039,0.19712907,2398.9,2398.7,4.16891]
[1730764873198,0.19712907,2398.9,2398.6,4.16908]
[1730764873401,0.19712907,2398.9,2398.6,4.16901]
[1730764873658,1.50712865,2398.9,2398.6,4.16901]
[1730764873953,1.50712865,2398.9,2398.6,8.33802]
[1730764874130,1.50712865,2398.9,2398.7,4.16879]
[1730764874647,0.19712907,2398.9,2398.8,4.16875]
[1730764875019,1.30999958,2399.1,2398.8,4.16875]
[1730764875218,0.19712907,2398.9,2398.7,4.16879]
[1730764875523,0.19712907,2398.9,2398.5,4.16915]
[1730764875524,0.19712907,2398.8,2398.5,8.33832]
[1730764875732,0.19712907,2398.8,2398.5,4.16915]
[1730764876404,1.50712865,2398.8,2398.5,4.16915]
[1730764876604,1.50712865,2398.8,2398.5,8.33833]
[1730764876907,0.19712907,2398.8,2398.5,8.33833]
[1730764877745,1.50712865,2398.8,2398.6,4.16901]
[1730764877959,0.19712907,2398.8,2398.6,4.16901]
[1730764878309,0.19712907,2398.8,2398.6,4.1273485]
[1730764878510,1.50712865,2398.8,2398.6,4.1273485]
[1730764880535,1.50712865,2398.8,2398.6,4.16909]
[1730764882243,1.30999958,2398.7,2398.5,4.16915]
[1730764882443,1.7154313,2398.7,2398.1,0.65258326]
[1730764882655,1.30999958,2398.5,2398.2,4.42664144]
[1730764882860,1.30999958,2398.5,2398.2,4.16968]
[1730764883010,0.19633872,2398.4,2398.2,4.16968]
[1730764883209,0.19633872,2398.4,2398.3,4.16962]
[1730764886559,0.19633872,2398.4,2398.2,4.16968]
[1730764887132,1.5063383,2398.4,2398.2,8.33938]
[1730764887541,0.19633872,2398.4,2398.2,8.33938]
[1730764887728,0.19633872,2398.4,2398.3,4.16962]
[1730764889415,1.5063383,2398.4,2398.3,4.16962]
[1730764889640,0.19633872,2398.4,2398.3,4.16962]
[1730764893426,1.5063383,2398.4,2398.3,4.16962]
[1730764893670,1.506007,2398.4,2398.3,4.16962]
[1730764896870,0.19600742,2398.4,2398.3,5.768058]
[1730764897163,0.19600742,2398.4,2398.3,5.96530592]
[1730764897379,0.19600742,2398.4,2398.3,6.37622674]
[1730764897581,1.30999958,2398.6,2398.3,2.26605074]
[1730764897794,1.30999958,2398.6,2398.5,4.16927]
[1730764898086,1.30999958,2398.7,2398.5,4.42596192]
[1730764898292,1.30999958,2398.7,2398.6,4.42578192]
[1730764899789,1.30999958,2398.7,2398.6,4.42591734]
[1730764900091,1.73878854,2398.7,2398.5,8.33844]
[1730764900293,1.31274897,2398.6,2398.5,4.16917]
[1730764900455,1.31274897,2398.6,2398.5,4.42606586]
[1730764901447,2.18799453,2399.1,2398.9,3.0]
[1730764901600,0.7679,2399.9,2399.3,0.7531]
[1730764901893,9.85516492,2400.1,2399.3,0.7531]
[1730764901894,3.39340073,2400.2,2399.7,4.16707]
[1730764902102,2.62550073,2400.4,2400.1,4.16639]
[1730764902404,2.62550073,2400.4,2399.8,4.98414]
[1730764902405,4.16597,2400.4,2399.8,4.98414]
[1730764902603,4.16615,2400.3,2399.8,4.98414]
[1730764902890,4.2250401,2400.6,2400.1,4.1664]
[1730764903100,4.2250401,2400.6,2399.8,1.81575879]
[1730764903101,4.16589,2400.5,2399.9,8.33348]
[1730764903303,4.16589,2400.5,2399.9,4.16671]
[1730764903466,4.16589,2400.5,2400.0,4.16658]
[1730764903798,0.0594101,2400.6,2400.3,4.16613]
[1730764903997,0.0594101,2400.6,2400.4,4.16595]
[1730764904663,0.0594101,2400.6,2400.3,4.16613]
[1730764904889,0.0594101,2400.6,2400.4,4.16593]
[1730764905724,0.0594101,2400.6,2400.5,4.16579]
[1730764906582,0.0594101,2400.6,2400.5,5.50341506]
[1730764907372,0.0594101,2400.6,2400.5,5.58671384]
[1730764907601,0.0594101,2400.6,2400.5,5.50341506]
[1730764908815,0.23981819,2400.6,2400.5,5.50341506]
[1730764908990,0.0594101,2400.6,2400.5,5.50341506]
[1730764909791,0.0594101,2400.6,2400.2,0.8243]
[1730764909978,0.0594101,2400.6,2399.9,0.8243]
[1730764910201,0.0594101,2400.6,2400.2,4.16615]
[1730764910423,0.18040809,2400.5,2400.4,4.99027]
[1730764910581,0.0594101,2400.6,2400.4,4.24926006]
[1730764910933,4.06763821,2402.3,2400.4,4.24926006]
[1730764910934,0.817,2402.4,2400.6,0.8243]
[1730764911082,0.817,2402.4,2400.5,2.64598442]
[1730764911083,0.817,2402.4,2401.7,4.98801]
[1730764911530,0.7831,2402.7,2401.7,4.98801]
[1730764911818,4.94511,2402.7,2401.7,4.98801]
[1730764912009,4.16215,2402.6,2401.7,4.98801]
[1730764913203,4.16251,2402.4,2401.7,4.98801]
[1730764913403,8.32513,2402.4,2401.7,4.98801]
[1730764914044,4.98967,2402.2,2401.6,4.16387]
[1730764914196,4.98967,2402.2,2401.7,4.16371]
[1730764914197,0.24292888,2401.8,2401.7,4.16371]
[1730764914540,0.24292888,2401.8,2401.6,4.16387]
[1730764914721,0.24292888,2401.8,2401.7,4.16371]
[1730764914919,0.0594101,2401.8,2401.7,4.16371]
[1730764915703,0.24292888,2401.8,2401.7,4.16371]
[1730764915902,0.0594101,2401.8,2401.7,4.16371]
[1730764916118,0.24292888,2401.8,2401.7,4.16371]
[1730764916332,0.0594101,2401.8,2401.7,4.16371]
[1730764916532,0.24292888,2401.8,2401.7,4.996459]
[1730764916698,0.0594101,2401.8,2401.7,4.996459]
[1730764916914,0.24292888,2401.8,2401.7,4.996459]
[1730764917238,0.0594101,2401.8,2401.7,4.996459]
[1730764917840,0.0594101,2401.8,2401.7,5.825559]
[1730764921919,0.0594101,2401.8,2401.6,4.16378]
[1730764922504,0.18467978,2401.7,2401.6,4.16378]
[1730764922956,0.0594101,2401.8,2401.6,4.16378]
[1730764923150,0.18467978,2401.7,2401.6,4.16378]
[1730764923508,0.0594101,2401.8,2401.7,4.16371]
[1730764923708,0.0594101,2401.8,2401.7,9.25572718]
[1730764923907,0.0594101,2401.8,2401.7,9.81017359]
[1730764924212,0.0594101,2401.8,2401.7,10.36017359]
[1730764924706,0.0594101,2401.8,2401.7,9.80572718]
[1730764925626,0.0594101,2401.8,2401.7,10.05778948]
[1730764927322,0.0594101,2401.8,2401.7,10.46167509]
[1730764928069,0.0594101,2401.8,2401.7,10.46222968]
[1730764928572,1e-07,2401.8,2401.7,10.46222968]
[1730764929079,1e-07,2401.8,2401.7,6.91222968]
[1730764929240,1e-07,2401.8,2401.7,6.50822214]
[1730764929568,1e-07,2401.8,2401.7,6.91301299]
[1730764929770,1e-07,2401.8,2401.7,11.30201299]
[1730764929969,1e-07,2401.8,2401.7,6.91301299]
[1730764930369,1e-07,2401.8,2401.7,9.91301299]
[1730764930571,1e-07,2401.8,2401.7,9.25572718]
[1730764930754,1e-07,2401.8,2401.7,9.91411741]
[1730764931630,1e-07,2401.8,2401.7,9.91518054]
[1730764931839,1e-07,2401.8,2401.7,15.40862695]
[1730764932040,0.0594101,2403.0,2401.7,11.24491695]
[1730764932265,0.0594101,2403.0,2402.9,4.16163]
[1730764932568,0.0594101,2403.0,2402.9,7.82108336]
[1730764933064,0.0594101,2403.0,2402.9,7.82029661]
[1730764933471,0.0594101,2403.0,2402.9,8.24256596]
[1730764933631,0.0594101,2403.0,2402.9,7.82029661]
[1730764933831,0.0594101,2403.0,2402.9,9.54049939]
[1730764934068,0.0594101,2403.0,2402.9,9.96276874]
[1730764934230,0.0594101,2403.0,2402.9,9.54049939]
[1730764934434,0.0594101,2403.0,2402.9,9.96276874]
[1730764934645,0.0594101,2403.0,2402.9,6.54049939]
[1730764936782,0.0594101,2403.0,2402.9,6.96276874]
[1730764936936,0.0594101,2403.0,2402.9,6.54049939]
[1730764938282,0.0594101,2403.0,2402.9,6.74334195]
[1730764938442,1e-07,2403.0,2402.9,11.93034541]
[1730764938779,0.8162,2404.0,2403.9,4.1599]
[1730764939079,0.99147366,2404.0,2403.9,4.41341616]
[1730764939590,0.8162,2404.0,2403.9,4.41341616]
[1730764939749,0.99147366,2404.0,2403.9,0.65919325]
[1730764939933,0.99147366,2404.0,2403.8,8.32004]
[1730764940134,0.99147366,2404.0,2403.9,0.2535386]
[1730764940685,0.99147366,2404.0,2403.9,0.65952606]
[1730764942077,0.99147366,2404.0,2403.9,0.2535386]
[1730764943376,0.99147366,2404.0,2403.5,4.16051]
[1730764943377,0.8218,2403.9,2403.5,4.16051]
[1730764943534,0.8218,2403.9,2403.6,0.25355922]
[1730764943877,0.17563735,2403.8,2403.5,4.16051]
[1730764944035,0.17563735,2403.8,2403.6,0.25356449]
[1730764944243,0.17563735,2403.8,2403.5,4.16051]
[1730764944579,0.17563735,2403.8,2403.6,0.25359304]
[1730764944876,0.17563735,2403.8,2403.4,4.16065]
[1730764944877,1.40735308,2403.8,2403.4,4.16065]
[1730764945192,1.40735308,2403.8,2403.5,0.25362967]
[1730764945367,1.40735308,2403.8,2403.4,4.16065]
[1730764945669,0.17563735,2403.8,2403.5,0.25367494]
[1730764945838,0.17563735,2403.8,2403.4,4.16065]
[1730764946033,0.17563735,2403.8,2403.5,0.33698824]
[1730764946240,0.17563735,2403.8,2403.7,4.16025]
[1730764946576,0.8218,2403.9,2403.7,4.41401694]
[1730764946776,0.8218,2403.9,2403.8,0.25370008]
[1730764947471,0.8218,2403.9,2403.8,4.41377008]
[1730764947835,0.0594101,2404.2,2403.9,4.15989]
[1730764947836,0.822,2404.1,2403.9,4.15989]
[1730764948489,0.822,2404.1,2403.7,4.16022]
[1730764948490,0.822,2404.1,2403.7,8.32036]
[1730764948786,0.822,2404.1,2403.8,0.25368303]
[1730764948958,0.822,2404.1,2404.0,4.15973]
[1730764949136,0.0594101,2404.2,2404.0,4.15973]
[1730764949547,0.0594101,2404.2,2404.1,4.15956]
[1730764949848,0.0594101,2404.2,2404.1,4.82914875]
[1730764950377,0.0594101,2404.2,2404.1,4.91232994]
[1730764950551,0.0594101,2404.2,2404.1,5.31804321]
[1730764950952,0.0594101,2404.2,2404.1,4.81890602]
[1730764951149,0.0594101,2404.2,2403.6,8.32067]
[1730764951150,7.2187901,2404.2,2403.6,8.32067]
[1730764951367,0.7677,2404.1,2403.7,4.41385183]
[1730764951570,4.92737,2404.1,2403.8,0.25384988]
[1730764951741,4.92737,2404.1,2403.6,4.16033]
[1730764952091,4.15987,2404.0,2403.7,0.25387897]
[1730764952269,0.7622,2403.7,2403.3,4.16092]
[1730764952444,0.7622,2403.7,2403.4,0.66051622]
[1730764952640,0.7622,2403.7,2403.5,0.25403866]
[1730764952848,0.8037,2403.5,2403.1,4.16116]
[1730764953057,0.8037,2403.5,2402.7,4.16196]
[1730764953058,4.16078,2403.4,2403.2,0.66058106]
[1730764953285,0.17600858,2403.3,2402.9,4.16155]
[1730764953584,4.93282,2403.2,2403.0,0.66112251]
[1730764953750,4.93282,2403.2,2402.7,8.32375]
[1730764953751,4.93282,2403.2,2403.1,0.66112251]
[1730764953939,4.93282,2403.2,2403.1,0.25429717]
[1730764954139,5.843597,2403.2,2403.1,0.25429717]
[1730764956942,0.7731,2403.2,2403.1,0.25429717]
[1730764959563,5.073168,2403.5,2403.1,0.66209425]
[1730764959564,4.16069,2403.5,2403.1,0.66209425]
[1730764959773,0.8029,2403.4,2403.2,0.25429717]
[1730764959944,0.8029,2403.4,2403.3,0.25429717]
[1730764960151,4.16036,2403.7,2403.3,0.25429717]
[1730764960152,0.8029,2403.6,2403.3,0.25429717]
[1730764960349,0.8029,2403.6,2403.4,0.25429717]
[1730764960652,0.8029,2403.6,2403.1,4.16121]
[1730764960653,4.9634,2403.6,2403.1,4.16121]
[1730764960846,4.9634,2403.6,2403.2,0.66258439]
[1730764961048,4.9634,2403.6,2403.3,0.25483409]
[1730764961242,4.9634,2403.6,2403.1,4.16121]
[1730764961243,0.8029,2403.6,2403.4,0.25496401]
[1730764961529,0.8029,2403.6,2403.3,4.16086]
[1730764961785,4.92381,2403.9,2403.4,0.25496988]
[1730764961941,4.92381,2403.9,2403.3,5.00138229]
[1730764961942,4.92381,2403.9,2403.5,0.25496988]
[1730764962138,4.16008,2403.8,2403.6,0.25496988]
[1730764962344,4.16008,2403.8,2403.3,4.16086]
[1730764962568,4.16008,2403.8,2403.4,0.66288126]
[1730764962772,4.16008,2403.8,2403.5,0.25494827]
[1730764962977,4.16008,2403.8,2403.6,0.25496374]
[1730764963181,4.16008,2403.8,2403.3,8.32171]
[1730764963378,4.16008,2403.8,2403.4,0.66290784]
[1730764963679,4.92381,2403.9,2403.4,0.66290784]
[1730764963680,4.92381,2403.9,2403.5,0.25495872]
[1730764963981,4.16008,2403.8,2403.3,4.16093]
[1730764964153,4.16008,2403.8,2403.4,0.25493283]
[1730764964356,4.16008,2403.8,2403.5,0.25493283]
[1730764964664,4.16008,2403.8,2403.3,4.16093]
[1730764964987,4.16008,2403.8,2403.4,0.25494855]
[1730764965306,4.16008,2403.8,2403.5,0.25494855]
[1730764965508,4.16008,2403.8,2403.3,4.16093]
[1730764965707,4.16008,2403.8,2403.4,0.25494901]
[1730764965895,4.16008,2403.8,2403.3,4.16093]
[1730764966076,4.16008,2403.8,2403.4,0.25498051]
[1730764966278,4.16008,2403.8,2403.3,4.16093]
[1730764966473,5.159303,2403.8,2403.4,0.25495281]
[1730764966720,4.16057,2403.6,2403.1,4.16128]
[1730764966901,0.7789,2403.7,2403.2,4.82389429]
[1730764967108,4.93924,2403.7,2403.3,0.25497251]
[1730764967716,0.7789,2403.7,2403.3,4.41587251]
[1730764968078,0.7789,2403.7,2403.4,4.41567502]
[1730764968279,0.17517512,2403.6,2403.4,4.16068]
[1730764968522,0.17517512,2403.6,2403.3,6.11085194]
[1730764968810,0.17517512,2403.6,2403.4,4.41575176]
[1730764969013,4.98529,2403.9,2403.4,4.16077]
[1730764969511,0.17517512,2403.8,2403.4,4.16077]
[1730764970809,0.7763,2403.6,2403.3,0.25497251]
[1730764971183,0.17564493,2403.5,2403.3,0.25497251]
[1730764975115,0.7824,2403.4,2403.3,0.25497251]
[1730764975620,0.9579237,2403.4,2403.3,0.25497251]
[1730764976293,0.9579237,2403.4,2403.2,4.16106]
[1730764976795,0.1755237,2403.4,2403.3,4.16094]
[1730764977222,0.7856,2403.7,2403.4,4.16066]
[1730764977514,0.7856,2403.7,2403.4,4.16068]
[1730764977907,2.53204718,2403.9,2403.4,0.0832092]
[1730764978112,2.53204718,2403.9,2403.6,4.16025]
[1730764978113,0.8146,2403.9,2403.6,4.16025]
[1730764978419,0.8146,2403.9,2403.6,8.32057]
[1730764979206,0.8146,2403.9,2403.6,4.16025]
[1730764979412,0.8146,2403.9,2403.7,4.16024]
[1730764979821,1.71744718,2404.0,2403.7,4.16024]
[1730764980122,2.53834718,2404.1,2403.8,4.16006]
[1730764980285,2.53834718,2404.1,2403.8,8.32005]
[1730764980921,2.53834718,2404.1,2403.8,4.15999]
[1730764981216,2.53834718,2404.1,2403.7,4.16017]
[1730764983386,0.17568282,2404.0,2403.9,4.15981]
[1730764983925,0.0594101,2404.2,2404.1,4.15956]
[1730764984426,0.0594101,2404.2,2404.0,4.15971]
[1730764986538,0.0594101,2404.2,2404.1,4.15956]
[1730764986684,0.0594101,2404.2,2404.1,4.991487]
[1730764987525,2.60852048,2404.8,2404.1,4.991487]
[1730764987526,2.61269885,2405.0,2404.9,4.94817]
[1730764987731,0.0594101,2405.4,2405.3,4.15748]
[1730764987994,0.0594101,2405.4,2405.2,4.15763]
[1730764988260,0.8211101,2405.4,2405.3,4.15748]
[1730764988557,0.0594101,2405.4,2405.2,4.15756]
[1730764988848,0.0594101,2405.4,2405.3,4.15748]
[1730764989650,0.0594101,2405.4,2405.2,4.15756]
[1730764989816,4.2168301,2405.4,2404.8,4.15821]
[1730764990012,0.83,2405.2,2404.3,4.96961]
[1730764990253,0.83,2405.2,2404.7,4.15842]
[1730764990820,4.98766,2405.2,2404.7,4.15842]
[1730764991027,0.83,2405.2,2404.7,4.15842]
[1730764991635,0.83,2405.2,2404.8,4.15832]
[1730764991838,0.5824885,2405.1,2404.8,4.15832]
[1730764992050,0.5824885,2405.1,2404.7,4.15842]
[1730764992565,0.5824885,2405.1,2404.7,8.31685]
[1730764992957,0.5824885,2405.1,2404.7,4.15842]
[1730764993336,4.7403185,2405.1,2404.6,4.15868]
[1730764993671,0.55703185,2405.0,2404.6,4.15868]
[1730764994161,0.55703185,2405.0,2404.6,4.15869]
[1730764995156,0.83,2405.2,2404.7,0.08316597]
[1730764995335,0.0594101,2405.4,2404.6,0.08315931]
[1730764995534,0.0594101,2405.4,2404.7,8.31672]
[1730764995535,4.15761,2405.3,2404.7,8.31672]
[1730764995750,3.0,2405.3,2404.7,4.15835]
[1730764995932,3.0,2405.3,2404.9,4.15815]
[1730764996282,1.21499701,2405.3,2404.9,4.15815]
[1730764996459,0.0594101,2405.4,2405.0,4.15787]
[1730764996632,0.0594101,2405.4,2405.1,4.15781]
[1730764997332,3.0594101,2405.4,2405.0,4.158]
[1730764998385,0.17796945,2405.3,2404.9,4.15815]
[1730764998668,0.8075,2405.2,2404.7,4.15835]
[1730764998885,0.17796188,2405.1,2404.7,4.15835]
[1730764999261,0.17796188,2405.1,2404.8,4.15831]
[1730765000531,0.17796188,2405.1,2404.7,4.15835]
[1730765001078,0.17796188,2405.1,2404.9,4.15807]
[1730765001737,0.17796188,2405.1,2404.9,8.31614]
[1730765001933,0.17796188,2405.1,2404.9,4.15807]
[1730765002577,0.17796188,2405.1,2404.6,4.1586]
[1730765002578,7.85018707,2405.1,2404.6,4.1586]
[1730765002776,7.33589188,2405.1,2404.6,4.1586]
[1730765003003,3.17796188,2405.1,2404.7,4.15848]
[1730765003307,3.17796188,2405.1,2404.6,4.1586]
[1730765003590,0.17796188,2405.1,2404.8,4.1583]
[1730765004053,0.17796188,2405.1,2404.7,4.15852]